[Event "Titled Tuesday Blitz May 2 Early 2023"]
[White "Rottenwohrer Suarez, Juan"]
[Black "Dehtiarov, Roman"]
[WhiteFideId "32068182"]
[BlackFideId "14186640"]
[WhiteElo "2174"]
[BlackElo "2189"]
[Result "1-0"]
[Round "01"]
[TimeControl "180+2"]
[Date "2023.05.02"]
[WhiteClock "0:00:00"]
[BlackClock "0:00:00"]

1. Nf3 {[%clk 0:00:01]}  Nf6 {[%clk 0:00:01]} 2. g3 {[%clk 0:00:01]}  d5 {[%clk 0:00:01]} 3. Bg2 {[%clk 0:00:01]}  Bg4 {[%clk 0:00:01]} 4. O-O {[%clk 0:00:01]}  Nbd7 {[%clk 0:00:01]} 5. c4 {[%clk 0:00:01]}  e6 {[%clk 0:00:01]} 6. Nc3 {[%clk 0:00:01]}  c6 {[%clk 0:00:01]} 7. d3 {[%clk 0:00:01]}  Be7 {[%clk 0:00:01]} 8. h3 {[%clk 0:00:01]}  Bxf3 {[%clk 0:00:01]} 9. Bxf3 {[%clk 0:00:01]}  dxc4 {[%clk 0:00:01]} 10. dxc4 {[%clk 0:00:01]}  Ne5 {[%clk 0:00:01]} 11. Qb3 {[%clk 0:00:01]}  Nxf3+ {[%clk 0:00:01]} 12. exf3 {[%clk 0:00:01]}  Qc8 {[%clk 0:00:01]} 13. Ne4 {[%clk 0:00:01]}  O-O {[%clk 0:00:01]} 14. Bf4 {[%clk 0:00:01]}  Nxe4 {[%clk 0:00:01]} 15. fxe4 {[%clk 0:00:01]}  Bc5 {[%clk 0:00:01]} 16. Kg2 {[%clk 0:00:01]}  f6 {[%clk 0:00:01]} 17. Rad1 {[%clk 0:00:01]}  e5 {[%clk 0:00:01]} 18. Be3 {[%clk 0:00:01]}  Bxe3 {[%clk 0:00:01]} 19. Qxe3 {[%clk 0:00:01]}  Qe6 {[%clk 0:00:01]} 20. b3 {[%clk 0:00:01]}  Rfd8 {[%clk 0:00:01]} 21. Rxd8+ {[%clk 0:00:01]}  Rxd8 {[%clk 0:00:01]} 22. Qxa7 {[%clk 0:00:01]}  Qd7 {[%clk 0:00:01]} 23. Qe3 {[%clk 0:00:00]}  Qd2 {[%clk 0:00:00]} 24. Qxd2 {[%clk 0:00:00]}  Rxd2 {[%clk 0:00:00]} 25. Ra1 {[%clk 0:00:00]}  c5 {[%clk 0:00:00]} 26. Kf3 {[%clk 0:00:00]}  Kf7 {[%clk 0:00:00]} 27. Ke3 {[%clk 0:00:00]}  Rb2 {[%clk 0:00:00]} 28. Rd1 {[%clk 0:00:00]}  Ke7 {[%clk 0:00:00]} 29. Rd2 {[%clk 0:00:00]}  Rb1 {[%clk 0:00:00]} 30. h4 {[%clk 0:00:00]}  h5 {[%clk 0:00:00]} 31. Kd3 {[%clk 0:00:00]}  b6 {[%clk 0:00:00]} 32. Ke3 {[%clk 0:00:00]}  Ra1 {[%clk 0:00:00]} 33. Kf3 {[%clk 0:00:00]}  g6 {[%clk 0:00:00]} 34. Kg2 {[%clk 0:00:00]}  Rb1 {[%clk 0:00:00]} 35. f3 {[%clk 0:00:00]}  f5 {[%clk 0:00:00]} 36. exf5 {[%clk 0:00:00]}  gxf5 {[%clk 0:00:00]} 37. Re2 {[%clk 0:00:00]}  Kf6 {[%clk 0:00:00]} 38. Rd2 {[%clk 0:00:00]}  Ke6 {[%clk 0:00:00]} 39. Re2 {[%clk 0:00:00]}  Rd1 {[%clk 0:00:00]} 40. Kf2 {[%clk 0:00:00]}  Kf6 {[%clk 0:00:00]} 41. Kg2 {[%clk 0:00:00]}  Rd3 {[%clk 0:00:00]} 42. Kf2 {[%clk 0:00:00]}  Rd8 {[%clk 0:00:00]} 43. Ke3 {[%clk 0:00:00]}  Rg8 {[%clk 0:00:00]} 44. Kf2 {[%clk 0:00:00]}  Rg7 {[%clk 0:00:00]} 45. Rd2 {[%clk 0:00:00]}  Ke6 {[%clk 0:00:00]} 46. Rd8 {[%clk 0:00:00]}  Rb7 {[%clk 0:00:00]} 47. Rh8 {[%clk 0:00:00]} 1-0


[Site "https://www.chess.com"]

[Event "Titled Tuesday Blitz May 2 Early 2023"]
[White "Gharibyan, Mamikon"]
[Black "Omariev, Maksim"]
[WhiteFideId "13308300"]
[BlackFideId "4193423"]
[WhiteElo "2445"]
[BlackElo "2304"]
[Result "1-0"]
[Round "01"]
[TimeControl "180+2"]
[Date "2023.05.02"]
[WhiteClock "0:00:00"]
[BlackClock "0:00:00"]

1. e4 {[%clk 0:00:01]}  c5 {[%clk 0:00:01]} 2. Nf3 {[%clk 0:00:01]}  d6 {[%clk 0:00:01]} 3. d4 {[%clk 0:00:01]}  cxd4 {[%clk 0:00:01]} 4. Nxd4 {[%clk 0:00:01]}  Nf6 {[%clk 0:00:01]} 5. Nc3 {[%clk 0:00:01]}  a6 {[%clk 0:00:01]} 6. Be2 {[%clk 0:00:01]}  e6 {[%clk 0:00:01]} 7. g4 {[%clk 0:00:01]}  Be7 {[%clk 0:00:01]} 8. g5 {[%clk 0:00:01]}  Nfd7 {[%clk 0:00:01]} 9. Be3 {[%clk 0:00:01]}  Bxg5 {[%clk 0:00:01]} 10. Nxe6 {[%clk 0:00:01]}  fxe6 {[%clk 0:00:01]} 11. Qd2 {[%clk 0:00:01]}  Bxe3 {[%clk 0:00:01]} 12. Qxe3 {[%clk 0:00:01]}  O-O {[%clk 0:00:00]} 13. O-O-O {[%clk 0:00:01]}  Qf6 {[%clk 0:00:00]} 14. Kb1 {[%clk 0:00:01]}  Qf4 {[%clk 0:00:00]} 15. Qh3 {[%clk 0:00:01]}  Nf6 {[%clk 0:00:00]} 16. Rhg1 {[%clk 0:00:01]}  Nc6 {[%clk 0:00:00]} 17. Bc4 {[%clk 0:00:01]}  d5 {[%clk 0:00:00]} 18. exd5 {[%clk 0:00:01]}  exd5 {[%clk 0:00:00]} 19. Qg2 {[%clk 0:00:01]}  g6 {[%clk 0:00:00]} 20. Bxd5+ {[%clk 0:00:01]}  Nxd5 {[%clk 0:00:00]} 21. Qxd5+ {[%clk 0:00:00]}  Qf7 {[%clk 0:00:00]} 22. Qg5 {[%clk 0:00:00]}  Be6 {[%clk 0:00:00]} 23. h4 {[%clk 0:00:00]}  Qf4 {[%clk 0:00:00]} 24. Qc5 {[%clk 0:00:00]}  Rf5 {[%clk 0:00:00]} 25. Qb6 {[%clk 0:00:00]}  Qb4 {[%clk 0:00:00]} 26. Qe3 {[%clk 0:00:00]}  Re8 {[%clk 0:00:00]} 27. a3 {[%clk 0:00:00]}  Qxh4 {[%clk 0:00:00]} 28. Qb6 {[%clk 0:00:00]}  Qe7 {[%clk 0:00:00]} 29. Rh1 {[%clk 0:00:00]}  Qf7 {[%clk 0:00:00]} 30. Ka1 {[%clk 0:00:00]}  Rxf2 {[%clk 0:00:00]} 31. Ne4 {[%clk 0:00:00]}  Rxc2 {[%clk 0:00:00]} 32. Nd6 {[%clk 0:00:00]}  Qg7 {[%clk 0:00:00]} 33. Nxe8 {[%clk 0:00:00]}  Qe5 {[%clk 0:00:00]} 34. Rhe1 {[%clk 0:00:00]}  Re2 {[%clk 0:00:00]} 35. Nf6+ {[%clk 0:00:00]}  Kf7 {[%clk 0:00:00]} 36. Qxb7+ {[%clk 0:00:00]}  Kxf6 {[%clk 0:00:00]} 37. Rf1+ {[%clk 0:00:00]}  Bf5 {[%clk 0:00:00]} 38. Qxc6+ {[%clk 0:00:00]}  Qe6 {[%clk 0:00:00]} 39. Qc3+ {[%clk 0:00:00]}  Ke7 {[%clk 0:00:00]} 40. Rfe1 {[%clk 0:00:00]}  Kf7 {[%clk 0:00:00]} 41. Qc7+ {[%clk 0:00:00]}  Kg8 {[%clk 0:00:00]} 42. Rd8+ {[%clk 0:00:00]} 1-0


[Site "https://www.chess.com"]

[Event "Titled Tuesday Blitz May 2 Early 2023"]
[White "Castellanos Gomez, Alejandro"]
[Black "Sieciechowicz, Marcin"]
[WhiteFideId "22284141"]
[BlackFideId "1130170"]
[WhiteElo "2158"]
[BlackElo "2302"]
[Result "1-0"]
[Round "01"]
[TimeControl "180+2"]
[Date "2023.05.02"]
[WhiteClock "0:00:00"]
[BlackClock "0:00:00"]

1. d4 {[%clk 0:00:01]}  Nf6 {[%clk 0:00:01]} 2. Bf4 {[%clk 0:00:01]}  d5 {[%clk 0:00:01]} 3. e3 {[%clk 0:00:01]}  e6 {[%clk 0:00:01]} 4. Nd2 {[%clk 0:00:01]}  Bd6 {[%clk 0:00:01]} 5. Bg3 {[%clk 0:00:01]}  c5 {[%clk 0:00:01]} 6. c3 {[%clk 0:00:01]}  Qc7 {[%clk 0:00:01]} 7. Bd3 {[%clk 0:00:01]}  Nbd7 {[%clk 0:00:01]} 8. f4 {[%clk 0:00:01]}  a6 {[%clk 0:00:01]} 9. Ngf3 {[%clk 0:00:01]}  b5 {[%clk 0:00:01]} 10. O-O {[%clk 0:00:01]}  Bb7 {[%clk 0:00:01]} 11. Rc1 {[%clk 0:00:01]}  h6 {[%clk 0:00:01]} 12. Ne5 {[%clk 0:00:01]}  Ne4 {[%clk 0:00:01]} 13. Nxe4 {[%clk 0:00:01]}  dxe4 {[%clk 0:00:01]} 14. Bb1 {[%clk 0:00:01]}  Nf6 {[%clk 0:00:01]} 15. f5 {[%clk 0:00:01]}  exf5 {[%clk 0:00:01]} 16. Rxf5 {[%clk 0:00:01]}  O-O-O {[%clk 0:00:01]} 17. a4 {[%clk 0:00:01]}  c4 {[%clk 0:00:01]} 18. axb5 {[%clk 0:00:01]}  axb5 {[%clk 0:00:01]} 19. b3 {[%clk 0:00:01]}  Bxe5 {[%clk 0:00:00]} 20. Bxe5 {[%clk 0:00:01]}  Qd7 {[%clk 0:00:00]} 21. Rf4 {[%clk 0:00:00]}  Nd5 {[%clk 0:00:00]} 22. Rxe4 {[%clk 0:00:00]}  f5 {[%clk 0:00:00]} 23. bxc4 {[%clk 0:00:00]}  bxc4 {[%clk 0:00:00]} 24. Rf4 {[%clk 0:00:00]}  Nxf4 {[%clk 0:00:00]} 25. exf4 {[%clk 0:00:00]}  Rhf8 {[%clk 0:00:00]} 26. Qe2 {[%clk 0:00:00]}  Qd5 {[%clk 0:00:00]} 27. Ba2 {[%clk 0:00:00]}  Ba6 {[%clk 0:00:00]} 28. Rb1 {[%clk 0:00:00]}  Kd7 {[%clk 0:00:00]} 29. Rb6 {[%clk 0:00:00]}  Qa5 {[%clk 0:00:00]} 30. Rd6+ {[%clk 0:00:00]}  Ke7 {[%clk 0:00:00]} 31. Rxd8 {[%clk 0:00:00]}  Kxd8 {[%clk 0:00:00]} 32. Bxc4 {[%clk 0:00:00]}  Qa1+ {[%clk 0:00:00]} 33. Kf2 {[%clk 0:00:00]}  Bxc4 {[%clk 0:00:00]} 34. Qxc4 {[%clk 0:00:00]}  Qb2+ {[%clk 0:00:00]} 35. Kg3 {[%clk 0:00:00]}  Qb7 {[%clk 0:00:00]} 36. d5 {[%clk 0:00:00]}  g5 {[%clk 0:00:00]} 37. Qc5 {[%clk 0:00:00]}  gxf4+ {[%clk 0:00:00]} 38. Kxf4 {[%clk 0:00:00]}  Ke8 {[%clk 0:00:00]} 39. c4 {[%clk 0:00:00]}  Kf7 {[%clk 0:00:00]} 40. Qd6 {[%clk 0:00:00]}  Re8 {[%clk 0:00:00]} 41. Qf6+ {[%clk 0:00:00]}  Kg8 {[%clk 0:00:00]} 42. Qh8+ {[%clk 0:00:00]}  Kf7 {[%clk 0:00:00]} 43. Qg7# {[%clk 0:00:00]} 1-0


[Site "https://www.chess.com"]

[Event "Titled Tuesday Blitz May 2 Early 2023"]
[White "Bacallao Alonso, Yusnel"]
[Black "Avazkhonov, Alikhon"]
[WhiteFideId "3507416"]
[BlackFideId "14208504"]
[WhiteElo "2561"]
[BlackElo "1739"]
[Result "1-0"]
[Round "01"]
[TimeControl "180+2"]
[Date "2023.05.02"]
[WhiteClock "0:00:00"]
[BlackClock "0:00:00"]

1. d4 {[%clk 0:00:01]}  Nf6 {[%clk 0:00:01]} 2. Nf3 {[%clk 0:00:01]}  e6 {[%clk 0:00:01]} 3. c4 {[%clk 0:00:01]}  Bb4+ {[%clk 0:00:01]} 4. Nbd2 {[%clk 0:00:01]}  b6 {[%clk 0:00:01]} 5. g3 {[%clk 0:00:01]}  Bb7 {[%clk 0:00:01]} 6. Bg2 {[%clk 0:00:01]}  O-O {[%clk 0:00:01]} 7. O-O {[%clk 0:00:01]}  d5 {[%clk 0:00:01]} 8. Ne5 {[%clk 0:00:01]}  Nbd7 {[%clk 0:00:01]} 9. Qa4 {[%clk 0:00:01]}  Bxd2 {[%clk 0:00:01]} 10. Bxd2 {[%clk 0:00:01]}  Nxe5 {[%clk 0:00:01]} 11. dxe5 {[%clk 0:00:01]}  Nd7 {[%clk 0:00:01]} 12. cxd5 {[%clk 0:00:01]}  Nxe5 {[%clk 0:00:01]} 13. Bc3 {[%clk 0:00:01]}  Bxd5 {[%clk 0:00:01]} 14. Rfd1 {[%clk 0:00:01]}  Qd6 {[%clk 0:00:00]} 15. e4 {[%clk 0:00:00]}  Bc6 {[%clk 0:00:00]} 16. Qb3 {[%clk 0:00:00]}  Qc5 {[%clk 0:00:00]} 17. Bb4 {[%clk 0:00:00]}  Qb5 {[%clk 0:00:00]} 18. a4 {[%clk 0:00:00]}  Qc4 {[%clk 0:00:00]} 19. Qxc4 {[%clk 0:00:00]}  Nxc4 {[%clk 0:00:00]} 20. Rdc1 {[%clk 0:00:00]}  b5 {[%clk 0:00:00]} 21. Bxf8 {[%clk 0:00:00]}  Kxf8 {[%clk 0:00:00]} 22. b3 {[%clk 0:00:00]}  Na5 {[%clk 0:00:00]} 23. axb5 {[%clk 0:00:00]}  Nxb3 {[%clk 0:00:00]} 24. bxc6 {[%clk 0:00:00]} 1-0


[Site "https://www.chess.com"]

[Event "Titled Tuesday Blitz May 2 Early 2023"]
[White "Beerdsen, Thomas"]
[Black "Golubev, Mikhail"]
[WhiteFideId "1030108"]
[BlackFideId "14100983"]
[WhiteElo "2547"]
[BlackElo "2374"]
[Result "1-0"]
[Round "01"]
[TimeControl "180+2"]
[Date "2023.05.02"]
[WhiteClock "0:00:00"]
[BlackClock "0:00:00"]

1. e4 {[%clk 0:00:01]}  c5 {[%clk 0:00:01]} 2. Nf3 {[%clk 0:00:01]}  d6 {[%clk 0:00:01]} 3. d4 {[%clk 0:00:01]}  Nf6 {[%clk 0:00:01]} 4. Nc3 {[%clk 0:00:01]}  cxd4 {[%clk 0:00:01]} 5. Nxd4 {[%clk 0:00:01]}  g6 {[%clk 0:00:01]} 6. h3 {[%clk 0:00:01]}  Nc6 {[%clk 0:00:01]} 7. Nf3 {[%clk 0:00:01]}  Bg7 {[%clk 0:00:01]} 8. Bc4 {[%clk 0:00:01]}  O-O {[%clk 0:00:01]} 9. O-O {[%clk 0:00:01]}  Bd7 {[%clk 0:00:01]} 10. Bg5 {[%clk 0:00:01]}  Rc8 {[%clk 0:00:01]} 11. Qe2 {[%clk 0:00:01]}  a6 {[%clk 0:00:01]} 12. Rad1 {[%clk 0:00:01]}  b5 {[%clk 0:00:01]} 13. Bb3 {[%clk 0:00:01]}  Qc7 {[%clk 0:00:01]} 14. Bxf6 {[%clk 0:00:01]}  exf6 {[%clk 0:00:01]} 15. Qd2 {[%clk 0:00:01]}  b4 {[%clk 0:00:01]} 16. Nd5 {[%clk 0:00:01]}  Qb8 {[%clk 0:00:01]} 17. Qf4 {[%clk 0:00:01]}  f5 {[%clk 0:00:01]} 18. exf5 {[%clk 0:00:01]}  Bxf5 {[%clk 0:00:00]} 19. Ba4 {[%clk 0:00:01]}  Qb7 {[%clk 0:00:00]} 20. Qxd6 {[%clk 0:00:01]}  Kh8 {[%clk 0:00:00]} 21. Bxc6 {[%clk 0:00:01]}  Rxc6 {[%clk 0:00:00]} 22. Qxb4 {[%clk 0:00:01]}  Qxb4 {[%clk 0:00:00]} 23. Nxb4 {[%clk 0:00:01]}  Rb6 {[%clk 0:00:00]} 24. c3 {[%clk 0:00:01]}  a5 {[%clk 0:00:00]} 25. Nd5 {[%clk 0:00:01]}  Rxb2 {[%clk 0:00:00]} 26. a4 {[%clk 0:00:01]}  Be4 {[%clk 0:00:00]} 27. Ng5 {[%clk 0:00:01]}  Bxd5 {[%clk 0:00:00]} 28. Rxd5 {[%clk 0:00:01]}  Bxc3 {[%clk 0:00:00]} 29. Rfd1 {[%clk 0:00:01]}  h6 {[%clk 0:00:00]} 30. Ne4 {[%clk 0:00:01]}  Bb4 {[%clk 0:00:00]} 31. g4 {[%clk 0:00:01]}  Kg7 {[%clk 0:00:00]} 32. h4 {[%clk 0:00:01]}  Re8 {[%clk 0:00:00]} 33. Ng3 {[%clk 0:00:01]}  Re7 {[%clk 0:00:00]} 34. h5 {[%clk 0:00:01]}  Rc7 {[%clk 0:00:00]} 35. Rd7 {[%clk 0:00:01]}  Rxd7 {[%clk 0:00:00]} 36. Rxd7 {[%clk 0:00:01]}  Bc5 {[%clk 0:00:00]} 37. Ne4 {[%clk 0:00:01]}  Bb4 {[%clk 0:00:00]} 38. hxg6 {[%clk 0:00:01]}  Kxg6 {[%clk 0:00:00]} 39. f4 {[%clk 0:00:01]}  Re2 {[%clk 0:00:00]} 40. f5+ {[%clk 0:00:01]}  Kg7 {[%clk 0:00:00]} 41. Ng3 {[%clk 0:00:01]}  Ra2 {[%clk 0:00:00]} 42. Nh5+ {[%clk 0:00:01]}  Kg8 {[%clk 0:00:00]} 43. Rd8+ {[%clk 0:00:01]}  Kh7 {[%clk 0:00:00]} 44. Rd7 {[%clk 0:00:01]}  Kg8 {[%clk 0:00:00]} 45. Rd8+ {[%clk 0:00:01]}  Kh7 {[%clk 0:00:00]} 46. Nf6+ {[%clk 0:00:01]}  Kg7 {[%clk 0:00:00]} 47. Ne8+ {[%clk 0:00:01]}  Kg8 {[%clk 0:00:00]} 48. Nc7+ {[%clk 0:00:00]}  Kg7 {[%clk 0:00:00]} 49. Nd5 {[%clk 0:00:00]}  Rxa4 {[%clk 0:00:00]} 50. f6+ {[%clk 0:00:00]}  Kh7 {[%clk 0:00:00]} 51. Rd7 {[%clk 0:00:00]}  Bc5+ {[%clk 0:00:00]} 52. Kg2 {[%clk 0:00:00]}  Rxg4+ {[%clk 0:00:00]} 53. Kf3 {[%clk 0:00:00]}  Rg8 {[%clk 0:00:00]} 54. Rxf7+ {[%clk 0:00:00]}  Kg6 {[%clk 0:00:00]} 55. Rc7 {[%clk 0:00:00]}  Rf8 {[%clk 0:00:00]} 56. Rxc5 {[%clk 0:00:00]}  a4 {[%clk 0:00:00]} 57. Ra5 {[%clk 0:00:00]}  Rd8 {[%clk 0:00:00]} 58. Ke4 {[%clk 0:00:00]}  Re8+ {[%clk 0:00:00]} 59. Kd4 {[%clk 0:00:00]}  h5 {[%clk 0:00:00]} 60. Rxa4 {[%clk 0:00:00]}  h4 {[%clk 0:00:00]} 61. Ra7 {[%clk 0:00:00]}  Rh8 {[%clk 0:00:00]} 62. Rg7+ {[%clk 0:00:00]}  Kf5 {[%clk 0:00:00]} 63. f7 {[%clk 0:00:00]}  h3 {[%clk 0:00:00]} 64. Rg8 {[%clk 0:00:00]} 1-0


[Site "https://www.chess.com"]

[Event "Titled Tuesday Blitz May 2 Early 2023"]
[White "Pourkashiyan, Atousa"]
[Black "Kosakowski, Jakub"]
[WhiteFideId "12502014"]
[BlackFideId "1185080"]
[WhiteElo "2228"]
[BlackElo "2488"]
[Result "0-1"]
[Round "01"]
[TimeControl "180+2"]
[Date "2023.05.02"]
[WhiteClock "0:00:00"]
[BlackClock "0:00:00"]

1. e4 {[%clk 0:00:01]}  c5 {[%clk 0:00:01]} 2. Nf3 {[%clk 0:00:01]}  d6 {[%clk 0:00:01]} 3. d4 {[%clk 0:00:01]}  cxd4 {[%clk 0:00:01]} 4. Nxd4 {[%clk 0:00:01]}  Nf6 {[%clk 0:00:01]} 5. Nc3 {[%clk 0:00:01]}  a6 {[%clk 0:00:01]} 6. Bc4 {[%clk 0:00:01]}  e6 {[%clk 0:00:01]} 7. O-O {[%clk 0:00:01]}  Be7 {[%clk 0:00:01]} 8. Bb3 {[%clk 0:00:01]}  b5 {[%clk 0:00:01]} 9. Qf3 {[%clk 0:00:01]}  Qb6 {[%clk 0:00:01]} 10. Be3 {[%clk 0:00:01]}  Qb7 {[%clk 0:00:01]} 11. Qg3 {[%clk 0:00:01]}  b4 {[%clk 0:00:01]} 12. Na4 {[%clk 0:00:01]}  Nbd7 {[%clk 0:00:01]} 13. f3 {[%clk 0:00:01]}  O-O {[%clk 0:00:01]} 14. Kh1 {[%clk 0:00:01]}  Ne5 {[%clk 0:00:01]} 15. Nb6 {[%clk 0:00:01]}  Rb8 {[%clk 0:00:01]} 16. Nxc8 {[%clk 0:00:01]}  Rfxc8 {[%clk 0:00:01]} 17. Bh6 {[%clk 0:00:01]}  Ng6 {[%clk 0:00:01]} 18. Be3 {[%clk 0:00:00]}  a5 {[%clk 0:00:01]} 19. a4 {[%clk 0:00:00]}  bxa3 {[%clk 0:00:01]} 20. Rxa3 {[%clk 0:00:00]}  d5 {[%clk 0:00:01]} 21. exd5 {[%clk 0:00:00]}  Nxd5 {[%clk 0:00:01]} 22. Bxd5 {[%clk 0:00:00]}  Qxd5 {[%clk 0:00:01]} 23. Rc3 {[%clk 0:00:00]}  Bd6 {[%clk 0:00:01]} 24. Rxc8+ {[%clk 0:00:00]}  Rxc8 {[%clk 0:00:01]} 25. Qf2 {[%clk 0:00:00]}  h6 {[%clk 0:00:01]} 26. b3 {[%clk 0:00:00]}  Qh5 {[%clk 0:00:00]} 27. g3 {[%clk 0:00:00]}  Ne7 {[%clk 0:00:00]} 28. c4 {[%clk 0:00:00]}  a4 {[%clk 0:00:00]} 29. Nb5 {[%clk 0:00:00]}  Bb8 {[%clk 0:00:00]} 30. bxa4 {[%clk 0:00:00]}  Rxc4 {[%clk 0:00:00]} 31. Rd1 {[%clk 0:00:00]}  Nd5 {[%clk 0:00:00]} 32. Ba7 {[%clk 0:00:00]}  Bxa7 {[%clk 0:00:00]} 33. Nxa7 {[%clk 0:00:00]}  Rxa4 {[%clk 0:00:00]} 34. Nc6 {[%clk 0:00:00]}  Ra2 {[%clk 0:00:00]} 35. Qxa2 {[%clk 0:00:00]}  Qxf3+ {[%clk 0:00:00]} 36. Kg1 {[%clk 0:00:00]}  Qxd1+ {[%clk 0:00:00]} 37. Kf2 {[%clk 0:00:00]}  Qh1 {[%clk 0:00:00]} 38. Ke2 {[%clk 0:00:00]}  Qxh2+ {[%clk 0:00:00]} 0-1


[Site "https://www.chess.com"]

[Event "Titled Tuesday Blitz May 2 Early 2023"]
[White "Sokolovsky, Yahli"]
[Black "Liu, Casper"]
[WhiteFideId "2820242"]
[BlackFideId "1454153"]
[WhiteElo "2316"]
[BlackElo "2221"]
[Result "1-0"]
[Round "01"]
[TimeControl "180+2"]
[Date "2023.05.02"]
[WhiteClock "0:00:00"]
[BlackClock "0:00:00"]

1. b3 {[%clk 0:00:01]}  e5 {[%clk 0:00:01]} 2. Bb2 {[%clk 0:00:01]}  d6 {[%clk 0:00:01]} 3. e3 {[%clk 0:00:01]}  g6 {[%clk 0:00:01]} 4. d4 {[%clk 0:00:01]}  exd4 {[%clk 0:00:01]} 5. Qxd4 {[%clk 0:00:01]}  f6 {[%clk 0:00:01]} 6. Bc4 {[%clk 0:00:01]}  Bg7 {[%clk 0:00:01]} 7. Nc3 {[%clk 0:00:01]}  Ne7 {[%clk 0:00:01]} 8. Nf3 {[%clk 0:00:01]}  Nbc6 {[%clk 0:00:01]} 9. Qd2 {[%clk 0:00:01]}  a6 {[%clk 0:00:01]} 10. Nd5 {[%clk 0:00:00]}  Ne5 {[%clk 0:00:01]} 11. Nxe5 {[%clk 0:00:00]}  fxe5 {[%clk 0:00:01]} 12. O-O-O {[%clk 0:00:00]}  b5 {[%clk 0:00:01]} 13. Nxe7 {[%clk 0:00:00]}  bxc4 {[%clk 0:00:01]} 14. Qd5 {[%clk 0:00:00]}  Bd7 {[%clk 0:00:01]} 15. Nc6 {[%clk 0:00:00]}  Qc8 {[%clk 0:00:00]} 16. Qxc4 {[%clk 0:00:00]}  Be6 {[%clk 0:00:00]} 17. Qc3 {[%clk 0:00:00]}  a5 {[%clk 0:00:00]} 18. f4 {[%clk 0:00:00]}  Ra6 {[%clk 0:00:00]} 19. fxe5 {[%clk 0:00:00]}  Qa8 {[%clk 0:00:00]} 20. Nd4 {[%clk 0:00:00]}  Bxe5 {[%clk 0:00:00]} 21. Nxe6 {[%clk 0:00:00]}  Bxc3 {[%clk 0:00:00]} 22. Nxc7+ {[%clk 0:00:00]}  Kd7 {[%clk 0:00:00]} 23. Nxa8 {[%clk 0:00:00]}  Bxb2+ {[%clk 0:00:00]} 24. Kxb2 {[%clk 0:00:00]}  Rhxa8 {[%clk 0:00:00]} 25. a4 {[%clk 0:00:00]}  Re8 {[%clk 0:00:00]} 26. Rd3 {[%clk 0:00:00]}  Rb6 {[%clk 0:00:00]} 27. Rf1 {[%clk 0:00:00]}  Re4 {[%clk 0:00:00]} 28. Rf7+ {[%clk 0:00:00]}  Ke6 {[%clk 0:00:00]} 29. Rxh7 {[%clk 0:00:00]}  Rxa4 {[%clk 0:00:00]} 30. Rd4 {[%clk 0:00:00]}  Rxd4 {[%clk 0:00:00]} 31. exd4 {[%clk 0:00:00]}  a4 {[%clk 0:00:00]} 32. Rh3 {[%clk 0:00:00]}  axb3 {[%clk 0:00:00]} 33. Rxb3 {[%clk 0:00:00]}  Ra6 {[%clk 0:00:00]} 34. Rg3 {[%clk 0:00:00]}  Kf5 {[%clk 0:00:00]} 35. c3 {[%clk 0:00:00]}  Ra8 {[%clk 0:00:00]} 36. Kc2 {[%clk 0:00:00]}  Re8 {[%clk 0:00:00]} 37. Kd3 {[%clk 0:00:00]}  Re1 {[%clk 0:00:00]} 38. Rf3+ {[%clk 0:00:00]}  Ke6 {[%clk 0:00:00]} 39. Re3+ {[%clk 0:00:00]} 1-0


[Site "https://www.chess.com"]

[Event "Titled Tuesday Blitz May 2 Early 2023"]
[White "Storn, Justin"]
[Black "Milikow, Yoav"]
[WhiteFideId "30922720"]
[BlackFideId "2822237"]
[WhiteElo "2096"]
[BlackElo "2410"]
[Result "0-1"]
[Round "01"]
[TimeControl "180+2"]
[Date "2023.05.02"]
[WhiteClock "0:00:00"]
[BlackClock "0:00:00"]

1. d4 {[%clk 0:00:01]}  d5 {[%clk 0:00:01]} 2. c4 {[%clk 0:00:01]}  e6 {[%clk 0:00:01]} 3. Nc3 {[%clk 0:00:01]}  Nf6 {[%clk 0:00:01]} 4. Nf3 {[%clk 0:00:01]}  Bb4 {[%clk 0:00:01]} 5. cxd5 {[%clk 0:00:01]}  exd5 {[%clk 0:00:01]} 6. Bg5 {[%clk 0:00:01]}  O-O {[%clk 0:00:01]} 7. e3 {[%clk 0:00:01]}  c6 {[%clk 0:00:01]} 8. Bd3 {[%clk 0:00:01]}  Bg4 {[%clk 0:00:01]} 9. O-O {[%clk 0:00:01]}  h6 {[%clk 0:00:01]} 10. Bh4 {[%clk 0:00:01]}  Nbd7 {[%clk 0:00:01]} 11. h3 {[%clk 0:00:01]}  Bh5 {[%clk 0:00:01]} 12. Bg3 {[%clk 0:00:00]}  Bxc3 {[%clk 0:00:01]} 13. bxc3 {[%clk 0:00:00]}  b5 {[%clk 0:00:01]} 14. a4 {[%clk 0:00:00]}  a6 {[%clk 0:00:01]} 15. axb5 {[%clk 0:00:00]}  axb5 {[%clk 0:00:01]} 16. Qb3 {[%clk 0:00:00]}  Bxf3 {[%clk 0:00:01]} 17. gxf3 {[%clk 0:00:00]}  Re8 {[%clk 0:00:01]} 18. Kh2 {[%clk 0:00:00]}  Nh5 {[%clk 0:00:01]} 19. Rxa8 {[%clk 0:00:00]}  Qxa8 {[%clk 0:00:01]} 20. Rg1 {[%clk 0:00:00]}  Nxg3 {[%clk 0:00:01]} 21. Rxg3 {[%clk 0:00:00]}  Qa4 {[%clk 0:00:01]} 22. Qb1 {[%clk 0:00:00]}  Nf8 {[%clk 0:00:00]} 23. f4 {[%clk 0:00:00]}  Re7 {[%clk 0:00:00]} 24. f5 {[%clk 0:00:00]}  f6 {[%clk 0:00:00]} 25. Bc2 {[%clk 0:00:00]}  Qa3 {[%clk 0:00:00]} 26. Bb3 {[%clk 0:00:00]}  Kh8 {[%clk 0:00:00]} 27. Qc2 {[%clk 0:00:00]}  Nh7 {[%clk 0:00:00]} 28. h4 {[%clk 0:00:00]}  Nf8 {[%clk 0:00:00]} 29. Kh3 {[%clk 0:00:00]}  Nd7 {[%clk 0:00:00]} 30. Ba2 {[%clk 0:00:00]}  Nb6 {[%clk 0:00:00]} 31. Bb3 {[%clk 0:00:00]}  Qa1 {[%clk 0:00:00]} 0-1


[Site "https://www.chess.com"]

[Event "Titled Tuesday Blitz May 2 Early 2023"]
[White "Pujari, Rucha"]
[Black "Tanenbaum, Zachary"]
[WhiteFideId "5024528"]
[BlackFideId "2060850"]
[WhiteElo "2129"]
[BlackElo "2175"]
[Result "0-1"]
[Round "01"]
[TimeControl "180+2"]
[Date "2023.05.02"]
[WhiteClock "0:00:00"]
[BlackClock "0:00:00"]

1. d4 {[%clk 0:00:01]}  d5 {[%clk 0:00:01]} 2. c4 {[%clk 0:00:01]}  dxc4 {[%clk 0:00:01]} 3. e3 {[%clk 0:00:01]}  e5 {[%clk 0:00:01]} 4. Bxc4 {[%clk 0:00:01]}  Nc6 {[%clk 0:00:01]} 5. d5 {[%clk 0:00:01]}  Na5 {[%clk 0:00:01]} 6. Be2 {[%clk 0:00:01]}  c6 {[%clk 0:00:01]} 7. e4 {[%clk 0:00:01]}  Nf6 {[%clk 0:00:01]} 8. Nc3 {[%clk 0:00:01]}  Bb4 {[%clk 0:00:01]} 9. Bg5 {[%clk 0:00:01]}  h6 {[%clk 0:00:01]} 10. Bxf6 {[%clk 0:00:01]}  Qxf6 {[%clk 0:00:01]} 11. Qa4 {[%clk 0:00:01]}  Bxc3+ {[%clk 0:00:01]} 12. bxc3 {[%clk 0:00:01]}  b6 {[%clk 0:00:01]} 13. Nf3 {[%clk 0:00:00]}  O-O {[%clk 0:00:01]} 14. O-O {[%clk 0:00:00]}  Bg4 {[%clk 0:00:01]} 15. c4 {[%clk 0:00:00]}  Bxf3 {[%clk 0:00:01]} 16. Bxf3 {[%clk 0:00:00]}  cxd5 {[%clk 0:00:01]} 17. cxd5 {[%clk 0:00:00]}  Nb7 {[%clk 0:00:01]} 18. Rac1 {[%clk 0:00:00]}  Nc5 {[%clk 0:00:01]} 19. Qa3 {[%clk 0:00:00]}  Qd6 {[%clk 0:00:00]} 20. Qe3 {[%clk 0:00:00]}  a5 {[%clk 0:00:00]} 21. Be2 {[%clk 0:00:00]}  f5 {[%clk 0:00:00]} 22. exf5 {[%clk 0:00:00]}  Rxf5 {[%clk 0:00:00]} 23. f3 {[%clk 0:00:00]}  Raf8 {[%clk 0:00:00]} 24. Rfe1 {[%clk 0:00:00]}  Kh8 {[%clk 0:00:00]} 25. Bd3 {[%clk 0:00:00]}  Rg5 {[%clk 0:00:00]} 26. Be4 {[%clk 0:00:00]}  Rf4 {[%clk 0:00:00]} 27. Kh1 {[%clk 0:00:00]}  Rh5 {[%clk 0:00:00]} 28. Rcd1 {[%clk 0:00:00]}  Rfh4 {[%clk 0:00:00]} 29. h3 {[%clk 0:00:00]}  Qd7 {[%clk 0:00:00]} 30. Qf2 {[%clk 0:00:00]}  Rxh3+ {[%clk 0:00:00]} 31. gxh3 {[%clk 0:00:00]}  Qxh3+ {[%clk 0:00:00]} 0-1


[Site "https://www.chess.com"]